{"text_format":"3","workbook":"xlsx","n_sheets":2,"sheets":["Sheet1","Sheet2"],"not_rendered":{"defined_names":5},"read":"whole","date_system":"1900"}

{"sheet":"Sheet1","index":0,"n_rows":52,"n_cols":8,"rows_kept":52,"merged":[[0,0,0,7],[1,0,1,2],[1,4,1,7],[3,0,3,7],[16,0,16,3],[16,4,16,7],[17,0,17,7],[33,0,33,3],[33,4,33,7],[34,0,34,7],[39,0,39,3],[39,4,39,7],[40,0,40,7],[45,0,45,3],[45,4,45,7],[46,0,46,7],[50,0,50,3],[50,4,50,7],[51,0,51,7]]}
["2023年祚延园夏季检修（土建）工程投标报价表"]
[{"$nulls":4},"编制日期：2023年5月19日"]
["项次","项目名称","整 改 内 容","项目特征","单位","工程量","单价","总价"]
["101-酿1车间夏季检修工程量清单"]
[1,"1号、4号甑汽管地面开挖（修汽管）","开挖甑汽管地面，甑汽管修复完成之后，恢复原地面","1、将1号、4号甑汽管地面大理石板掀起，开挖至地面以下0.5m~0.8m，1号、4号甑汽管地面开挖面积分别为：3.5m*0.6m、5m*0.6m。\n2、1号、4号甑汽管修复完成之后，恢复原地面。"]
[2,"4只摊边打糟机轨道边一尺地面混泥土修复整平","摊边打糟机轨道旁地面混凝土低洼，有积水","1、摊边打糟机轨道旁地面混凝土凿毛，14m*0.2m*0.05m*8条。\n2、采用水泥砂浆（1：2）抹平扫光，14m*0.2m*0.05m*8条。"]
[3,"整平修补摊边花岗岩凹缝沟缝地面（约90平面方）","摊边花岗岩勾缝、调平","1、花岗岩拼缝需用标号42.5硅酸盐水泥浆勾缝3cm宽，面积约90m²。                                                                                   "]
[4,"整平修补拌料场大理石凹缝地面（约60平面方）","拌料场地大理石地有凹缝，防止水漏","将原有大理石板掀起，底沙调平后重新铺装面层，断裂成几块或碎裂大理石予以更换（大理石规格：300*600*20）。调平面积约60m²，更换15块大理石板。"]
[5,"混泥土修补甑芯底面及甑外地面、车间地面修补","甑芯，甑边，大理石修补","1、甑直径2.4米，共计：4个，4个甑底用2㎝厚M7.5水泥砂浆进行甑底找平原浆抹平（直径2.6m）。                                    2、甑边四周10cm宽的水泥砂浆抹平铲除，重新使用水泥砂浆抹平。"]
[6,"车间内排水沟清理100米","排水沟内有於糟等杂物，流水不畅","1、掀开原混凝土盖板；                                         2、清理排水沟内余糟，排水沟宽700㎜、深0.8~1.2米左右，排水沟长100m。"]
[7,"车间内沟盖板更换","更换沟盖板20块","1、沟盖板规格为800mm*500mm混凝土预制块，厚度为10cm，盖板用C25砼，内加放Ф10@150钢筋现场预制。\n2、共计：20块。"]
[8,"油漆打糟机、机架、档糟板，车间大门等","1、除锈；2、底漆、面漆各一遍（防锈漆采用丹红防锈漆，山东乐化牌，颜色由使用单位自定）。","1、设备：打槽机14m2，共计4个。\n2、其他桥架等零星设备面积约15m2。\n3、大门：3.3m*1.5m*2片+3.3*1.4*2片*2扇。"]
[9,"清铲车间窖池过道路面","清铲存积糟醅","1、人工清理条石板表层淤积物，约1.2m宽，8条*32m+6条*30m。"]
[10,"丢糟池旁地面破损严重","丢糟池旁地面破损严重，安全生产","1、破除原损坏混凝土地面：（8.6*2+1.3*1.6*2处）*0.15m厚，切缝长度：8.6+1.3*4+1.6*4。\n2、重新浇筑0.15m厚C25砼地面。\n3、原浆收光，整平，面积约21.4m²。 "]
[11,"车间办公室及所有工具房乳胶漆刷白、更换洗澡堂门","1、对变质的墙面进行基层打磨处理；\n2、再刮腻子粉2道和刷白色乳胶漆2道（面积约48平米，具体以实测为准）\n3、更换洗澡堂大门1扇","办公室3.8m长*2.7m宽*3.3m高，加天花面积约48平米（扣除门窗），刷乳胶漆。\n1、乳胶漆墙面做法：墙体打磨，刮腻子2遍，乳胶漆2遍。\n2、天花做法：基层打磨，乳胶漆2遍。\n3、拆除原洗澡堂木门，制安成品不锈钢制大门1扇，尺寸：2m*0.9m。"]
[12,"检修期间发现地面下沉另增加（地面混凝土整平）","地面下沉，重新破除及浇筑混凝土","1、破除已下沉地面混凝土2m长*2m宽*0.15m厚*4块，回填土并夯实。\n2、重新浇筑0.10m厚C25混凝土地面16㎡。\n3、原浆收光，整平，面积16m²。"]
["酿造一车间总价："]
["101-酿2车间夏季检修工程量清单"]
[1,"4号摊铁轨更换","更换铁轨","更换4号摊铁轨2条，单根长14m。破除原轨道及边上混凝土，约200*150，长14米/条；协助安装铁轨（铁轨及焊接甲供）并浇筑200*150混凝土粱包裹轨道，要求2条轨道平整度不超过3cm。"]
[2,"4只摊铁轨旁边的地面开挖修补","开挖修补","1、摊边打糟机轨道旁地面混凝土凿毛，14m*0.2m*0.05m*4条。\n2、采用水泥砂浆（1：2）抹平扫光，14m*0.2m*0.05m*4条。"]
[3,"麻条石沟缝","麻条石沟缝清理、调平","1、麻条石沟缝需用标号42.5硅酸盐水泥浆勾缝3cm宽，面积约310m²。                                                                                   "]
[4,"作业区大理石部分整平","作业区大理石整平（面积现场\n测量）","1、将原有大理石板掀起，底沙调平后重新铺装面层，断裂成几块或碎裂大理石予以更换（大理石规格：300*600*20）。调平面积约30m²，更换25块大理石板。"]
[5,"车间内排水沟清理","排水沟内有於糟等杂物，流水不畅","1、掀开原混凝土盖板；2、清理排水沟内余糟，排水沟宽700㎜、深0.8~1.2米左右；排水沟长38m。"]
[6,"车间内沟盖板更换","沟盖板长时间使用破损","1、沟盖板规格为800mm*500mm混凝土预制块，厚度为10cm，盖板用C25砼，内加放Ф10@150钢筋现场预制；\n2、共计：20块。"]
[7,"除锈涂漆","1、除锈；2、底漆、面漆各一遍（防锈漆采用丹红防锈漆，山东乐化牌，颜色由使用单位自定）。","大门除锈涂漆：3.3m*1.4m*2片+3.3*1.5*2片*2扇。"]
[8,"四口甑底部及甑边水泥修复","四口甑底部地面长时间使用出现破损","1、甑直径2.4米，共计：4个，4个甑底用2㎝厚M7.5水泥砂浆进行甑底找平原浆抹平（直径2.6m）。                      2、甑边四周10cm宽的水泥砂浆抹平铲除，重新使用水泥砂浆抹平。"]
[9,"车间内过道水泥地面修补，破损水泥路面浇筑及修补","15处混凝土地面修复","1、破除已损坏混凝土地面15处，每处面积约0.5m²，厚度约0.1m。\n2、重新浇筑0.1m厚C25混凝土地面。\n3、原浆收光，整平，面积约7.5m²。"]
[10,"修补摊边花岗岩凹凸地面和车间所有窖池过道凹凸地面及冷却桶周边地面（水泥修补）。",null,"1:2.5水泥砂浆修补地面7处，每处约0.36平米。"]
[11,"清铲车间窖池过道路面","糟醅存积较厚","1、人工清理过道条石板表层淤积物，约1.3m宽，8条*36m+4条*12m+4条*6m。"]
[12,"1班板车暂放处墙面修补","1班板车暂放处墙面水泥抹平","1班板车暂放处墙面进行水泥砂浆（1：2）修补及抹平扫光，面积约4.4㎡，厚度2cm~5cm。"]
[13,"车间所有工具房乳胶漆刷白","1、对变质的墙面进行基层打磨处理；\n2、再刮腻子粉2道和刷白色乳胶漆2道（面积约310m²，具体以实测为准）\n","车间工具房3.8m长*2.75m宽*3.35m高*6间房，加天花面积约301m²（扣除门窗），刷乳胶漆。\n1、乳胶漆墙面做法：墙体打磨，刮腻子2遍，乳胶漆2遍。\n2、天花做法：基层打磨，乳胶漆2遍。"]
[14,"1号甑汽管漏汽，地面需开挖并回填","开挖甑汽管地面，甑汽管修复完成之后，恢复原地面","1、将1号甑汽管地面大理石板掀起，开挖至地面以下0.5m~0.8m，1号甑汽管地面开挖面积为1.8m²。\n2、1号甑汽管修复完成之后，恢复原地面。"]
[15,"新增洗澡堂大门","洗澡堂大门位置更换","1、原洗澡堂大门封闭，洗澡堂窗户拆除并封堵，在原窗户位置处新增不锈钢制大门一扇，新增不锈钢制大门：2.1m*0.9m，窗户：1.6m*1.2m。\n2、采用240厚砖混结构进行封堵，水泥砂浆（1：2）修补及抹平扫光，面积为：1.6*1.2-1.2*0.9。\n3、洗澡堂大门旁新增C25混凝土斜坡平台：1.5*1.5*（0~0.3m）。"]
["酿造二车间总价："]
["201车间祚延园夏季检修工程量清单"]
[1,"老酒库周边铁质落水管拆除，及窗户玻璃加固；",null,"4根6米长DN160铸铁排水管，拆除。玻璃窗采用玻璃胶加固，约20个窗。"]
[2,"优质酒库天花板粉刷层脱落；",null,"4处，每处约1平米，6米高，敲除松动的粉刷层，刮1道腻子，刷2遍乳胶漆。"]
[3,"优质酒库地下通道增加窗口纱网；",null,"制安金刚网纱窗1处，60*90cm。"]
[4,"四码头及祚延园收酒栈桥防腐处理；",null,"祚延园收酒栈桥长11.6米、宽1.2米、高约4米。"]
["201车间总价："]
["包二夏季检修工程量清单"]
[1,"地面水泥硬化","373CM*238CM","3.7*2.4米空地，场地平整，浇筑10cm厚C25混凝土地面"]
[2,"车间门打磨喷漆","338CM*232CM","2扇2.4m*2.5m钢质门防腐：门内外表面除锈，表面刷涂防锈磁漆2遍，面漆1遍。"]
[3,"车间门打磨喷漆","148CM*240CM","3扇1.5m*2.4m钢质门防腐：门内外表面除锈，表面刷涂防锈磁漆2遍，面漆1遍。"]
[4,"车间门打磨喷漆","97CM*210CM","1扇1m*2.1m钢质门防腐：门内外表面除锈，表面刷涂防锈磁漆2遍，面漆1遍。"]
["包二总价："]
["仓储管理部祚延园夏季检修工程量清单"]
[1,"C-1仓库10号门改造","将10号门改矮（参照2022年C-1仓4号门改造方案）。","见附图"]
[2,"大米仓库新建卸货平台","1、大米仓库搭建10米（长）*3.5米（宽）*1.35米（高）的卸货平台；\n2、延续平台搭建10米（长）*2.1米（宽）的斜坡。","搭建10m长*3.5m宽*1.35米高卸货平台，10m长*3.5m宽*1.35米高斜坡。详见附图"]
[3,"B-1/F-1仓库部分地面维修改造","凿除原开裂凹陷地面，加铺一层水泥并进行金刚砂表层处理。","破除混凝土地面，约20cm厚。重新浇筑20cm厚C30金刚砂混凝土地面约50平米，每平米铺撒6公斤金刚砂收面，三遍以上打磨、收光。其中一边需要在混凝土表面切割8米长。"]
["仓储管理部总价："]
["注：1、施工单位必须遵守国家相关规定以及我司规章制度，做好相关安全保障工作。\n2、设备管道油漆均采用山东乐化牌，镀锌管均采用华岐牌，水泥均采用红狮牌水泥PC32.5(或以上标号)，塑料管道采用联塑牌，防水卷材采用国标SBS防水卷材（3mm厚），乳胶漆采用立邦或多乐士低档乳胶漆，电缆电线采用赣昌，特别注明处按照说明执行。\n3、以上施工现场所产生的建筑垃圾、渣土、砖渣及淤泥、弃糟等由施工单位清运出厂区（我方需要的，运至厂区指定位置）。\n4、以上工作施工前均需提前通知相关维修提报单位，与之沟通好相关维修安排，避免与车间其他工作产生冲突、二次污染等。并请施工单位务必做好厂区构筑物、设施设备、机具等的保护工作，污染、损坏的必须修复。\n5、未尽事宜按照国家相关规范进行施工及验收。"]

{"sheet":"Sheet2","index":1,"n_rows":187,"n_cols":9,"rows_kept":187,"merged":[[0,0,0,6],[1,0,1,2],[1,5,1,6],[3,0,3,6],[4,0,4,6],[14,0,14,3],[15,0,15,6],[27,0,27,3],[28,0,28,6],[31,0,31,3],[32,0,32,6],[40,0,40,3],[40,4,40,6],[41,0,41,6],[49,0,49,3],[49,4,49,6],[50,0,50,6],[54,0,54,3],[54,4,54,6],[55,0,55,6],[64,0,64,3],[64,4,64,6],[65,0,65,6],[75,0,75,3],[75,4,75,6],[76,0,76,6],[85,0,85,3],[85,4,85,6],[86,0,86,6],[96,0,96,3],[96,4,96,6],[97,0,97,6],[107,0,107,3],[107,4,107,6],[108,0,108,6],[113,0,113,3],[113,4,113,6],[114,0,114,6],[123,0,123,3],[123,4,123,6],[124,0,124,6],[134,0,134,3],[134,4,134,6],[135,0,135,6],[146,0,146,3],[146,4,146,6],[147,0,147,6],[150,0,150,3],[150,4,150,6],[151,0,151,6],[156,0,156,3],[156,4,156,6],[157,0,157,6],[159,0,159,3],[159,4,159,6],[160,0,160,6],[165,0,165,3],[165,4,165,6],[166,0,166,6],[172,0,172,3],[172,4,172,6],[173,0,173,6],[178,0,178,3],[178,4,178,6],[179,0,179,6],[185,0,185,3],[185,4,185,6],[186,0,186,6]]}
["2021年夏季检修（土建）工程投标报价表"]
[{"$nulls":5},"编制日期：2021年6月1日"]
["项次","项目名称","整 改 内 容","项目特征","单位","工程量","单价"]
["祚延园夏季检修"]
["101-酿1车间夏季检修工程量清单"]
[1,"挖开窖池过道并填土","打开过道水泥板，挖出炉渣，更换黄土","人工打开过道水泥板，人工挖出过道内原有炉渣，过道宽1m、深2m，长20m，人工回填黄土，回填土需分层人工夯实，分层回填厚度不超过25cm每层，重新盖回过道水泥板。"]
[2,"摊边花岗岩凹缝地面勾缝、调平","摊边花岗岩勾缝、调平","1、花岗岩拼缝需用标号42.5硅酸盐水泥浆勾缝3cm宽，面积29m²。                                               2、将摊边花岗石掀起，重新铺贴平整，铺贴完成后进行勾缝处理，面积约为36.5平方。                                     3、破除摊边宽0.1m×长15m×厚5cm混凝土，重新浇筑C25混凝土，并采用原浆收光。"]
[3,"作业区大理石地面调平","作业区大理石调平更换","1、将原有大理石板掀起，底沙调平后重新铺装面层，断裂成几块或碎裂大理石予以更换（大理石规格：300*600*20）。调平面积约25m²，更换10块大理石板。"]
[4,"车间4甑、甑底、甑边抹平修复","更换大理石，4甑芯底及甑边修补","1、更换大理石板0.5m²(大理石规格：300*600*20)。          2、甑直径2.4米，共计：4个，4个甑底用2㎝厚M7.5水泥砂浆进行甑底找平原浆抹平（直径2.6m）。                      3、甑边四周10cm宽的水泥砂浆抹平铲除，重新使用水泥砂浆抹平。"]
[5,"车间内排水沟清理","清理排水沟","1、掀开原混凝土盖板；                                2、清理排水沟内余糟，排水沟宽700㎜、深0.8~1.2米左右，排水沟长60m。"]
[6,"清铲车间窖池过道路面","清铲条石板存积糟醅","1、人工清理条石板表层淤积物，面积约480m2。"]
[7,"车间内沟盖板更换","更换沟盖板20块","1、沟盖板规格为800×500混凝土预制块，厚度为10cm，盖板用C25砼，内加放Ф10@150钢筋现场预制；共计：20块。"]
[8,"开挖回流管道","窖池周围渗水","1、破除混凝土地面，开挖16长、宽0.5m、深0.5m的地面至回流管道，确认回流管道是否漏水，如漏水由动力车间维修，维修完成后回填，恢复原有地面。"]
[9,"工具房内开窗户一扇，洗澡堂内百页窗修补","工具房内安装窗户一扇，洗澡堂内百页窗修补","1、工具房在墙面开一个1.0m×1.0m的洞口，安装钢筋网格栅栏                                                  2、洗澡堂百叶拆除，重新制安铝合金百叶窗，尺寸为1.2m×1.4,m。"]
["酿造一车间总价"]
["101-酿2车间夏季检修工程量清单"]
[1,"1、2号摊鼓风通道装贴瓷板","更换不锈钢摊架，贴瓷板","1、将两个凉摊机下鼓风通道原有瓷砖铲除，重新铺贴白色光滑普通瓷砖；尺寸为：2.1m*13m，侧边高度为10-50cm；\n2、配合公司机修拆除并安装两副不锈钢摊架（土建及预埋）。"]
[2,"作业区大理石全部整平","作业区大理石局部整平（面积现场\n测量）","1、将原有大理石板掀起，底沙调平后重新铺装面层，断裂成几块或碎裂大理石予以更换（大理石规格：300*600*20）。调平面积约20m²，更换10块大理石板。"]
[3,"车间内排水沟清理","清理排水沟27m","1、掀开原混凝土盖板；2、清理排水沟内余糟，排水沟宽700㎜、深0.8~1.2米左右；排水沟长38m"]
[4,"车间内沟盖板更换","更换沟盖板20块","1、沟盖板规格为800mm*500mm混凝土预制块，厚度为10cm，盖板用C25砼，内加放Ф10@150钢筋现场预制；2、共计：20块。"]
[5,"除锈涂漆","1、设备：打槽机14m2，共计4个；2、其他桥架等零星设备面积约15m2；3、门：3m*3.3m*1樘。","1、所有设备除锈； 2、底漆、面漆各一遍（防锈漆采用丹红防锈漆，山东乐化牌，颜色由使用单位自定）。"]
[6,"四口甑底部地面修复","甑底部地面长时间使用出现破损，甑直径2.4米，共计：4个","1、甑直径2.4米，共计：4个，4个甑底用2㎝厚M7.5水泥砂浆进行甑底找平原浆抹平（直径2.6m）。                      2、甑边四周10cm宽的水泥砂浆抹平铲除，重新使用水泥砂浆抹平。"]
[7,"车间内水泥地面修补","修复水泥地面（面积现场测量）","1、破除原有混凝土地面宽0.5m×长13m×0.1m厚，重新浇筑C25砼地面。原浆收光，整平，面积6.5m²                                    2、破除原有混凝土地面6处，重新浇筑C25砼地面。原浆收光，整平，面积1.2m²。                                      3、原有大理石和混凝土地面，将大理石掀起，混凝土地面破除，浇筑C25混凝土地面，地面尺寸为宽2m、长9.2m，厚0.1m，原浆收光，整平，面积18.4m²。"]
[8,"清铲车间窖池过道路面","清铲存积糟醅","1、人工清理条石板表层淤积物，面积约480m2。"]
[9,"摊边花岗岩凹缝地面勾缝","摊边花岗岩勾缝","1、花岗岩拼缝需用标号42.5硅酸盐水泥浆勾缝3cm宽，面积120m²（4个摊边宽2.3m，长13m）。"]
[10,"车间窖池过道凹凸地面","修复水泥地面（面积现场测量）","1、调平过道10块0.6m×2.2m水泥板，过道地面进行勾缝处理，面积约10m²。"]
[11,"车间办公室滚涂乳胶漆","车间办公室滚涂乳胶漆","1、原有墙面天花顶腻子开裂，铲除原有腻子，重新刮两道腻子耐水腻子，需布置玻纤网，面积约为3平方。                            2、打磨墙面及天花顶原有腻子，滚涂两遍乳胶漆，面积约为   40平方。"]
["酿造二车间总价"]
["仓储管理部祚延园夏季检修工程量清单"]
[1,"高档瓶子仓2个小门封堵","拆除原门并砌墙封堵","1、拆除原门。2、采用240厚红色烧结多孔砖，采用M7.5混合砂浆砌筑，门洞宽1.8m，高2.4m。240墙体水泥砂浆双面粉刷，刮两道耐水腻子。"]
[2,"库外爬梯防锈处理","C1仓库1个爬梯长度8m，C2仓1个爬梯长度7m，C3仓1个爬梯进行除锈处理。","1、进行除锈；2、底漆、面漆各一遍（防锈漆采用丹红防锈漆，山东乐化牌，颜色由使用单位自定）。"]
["仓储管理部总价"]
["动力一车间祚延园夏季检修工程量清单"]
[1,"动力车间资料室漏雨","防水处理","1、共有1处漏雨，铲除原有防水卷材，铺贴12平方瑞龙SBS防水卷材带铝箔反光膜（3mm厚）。"]
[2,"包五车间外墙配电箱接地","接地处理","1、接地线管不整齐，重新使用线槽布置在墙上，长1.5m。"]
[3,"包五车间外地面围挡","围挡砌筑","1、采用240厚红色烧结多孔砖，采用M7.5混合砂浆砌筑，围挡宽0.24m、高0.3m、长1.2m，墙体水泥砂浆双面粉刷。"]
[4,"罐群旁排水沟地面破损","原有地面破损","1、破除原有破损混凝土地面，地面宽0.3m，长6m，深0.2m。                2、制安一个宽0.3m、长6m的槽钢沟盖板，槽钢尺寸为：80*40*4.8.                                          3、浇筑一个宽0.3m，长6m，深0.2m混凝土水沟，将槽钢镶嵌混凝土中。  "]
[5,"优质酒库地面积水","地面开孔排水","1、使用水钻在混凝土地面开凿两个直径7.5cm孔洞用于地面排水。"]
[6,"扩建酒库外花坛围挡","围挡砌筑（2处）","1、采用240厚红色烧结多孔砖，采用M7.5混合砂浆砌筑，围挡宽0.3m、高0.4m、长4.2m，240墙体水泥砂浆双面粉刷。      2、采用240厚红色烧结多孔砖，采用M7.5混合砂浆砌筑，围挡宽0.2m、高0.1m、长2m，墙体水泥砂浆双面粉刷。"]
[7,"高压配电房卫生间改造","高压配电房卫生间较拥挤","1、原有蹲坑增加砖砌宽0.3m、长8m高度为0.12m的台阶，水泥砂浆粉刷，表面铺贴黑金沙花纹瓷砖。                            2、拆除原有卫生间隔断，重新制安宽度1.5m，长度5.3m，高度2.04m的蜂窝铝隔断，参照宿舍卫生间隔断。每个卫生间共有六个蹲位。男女卫生间两个都需改造。"]
["动力一车间总价",{"$nulls":3},{"$f":"#REF!+#REF!+#REF!+#REF!+#REF!+#REF!+#REF!","v":{"$error":"#REF!"}}]
["301车间祚延园夏季检修工程量清单"]
[1,"包二车间洗瓶区安装纯净水管道","安装纯净水管道","具体做法见详图"]
[2,"包二车间洗瓶区水过滤器更换水管","更换水管","包二车间过滤器pvc水管更换方案：原过滤器de63 PVC水管拆除，更换为外径63的304不锈钢管，氩弧焊接，四个过滤器更换总长度为75m；中间替换16个不锈钢快装球阀。末端de32 pvc水管更换为de32  304不锈钢管，四组过滤器总厂36m，de32快装球阀共12个。"]
[3,"包二车间折合区安装水管、\n水池及下水管","安装水管，水池，下水管","具体做法见详图"]
[4,"包二洗手间通道更换地砖","更换地砖","1、破除原有地面瓷砖，重新铺贴16块0.6m×0.6m白色普京地砖。"]
[5,"包二中门楼梯步改为斜坡","浇筑混凝土斜坡","1、使用C25混凝土浇筑5m长，宽为2.9m，高为0-0.55m的斜坡，原浆收光后对坡道进行压纹处理。"]
[6,"包六车间门口增加斜坡一个","浇筑混凝土斜坡","1、使用C25混凝土浇筑3.4m长，宽为1.2m，高为0-0.50m的斜坡，原浆收光后对坡道进行压纹处理。"]
[7,"包六车间酒库更换不锈钢楼梯","更换不锈钢斜梯","1、拆除原有钢梯。                                         2、制安一个长4.0m、宽1.06m的不锈钢楼梯。踏步钢板采用3mm厚不锈钢花纹板。结构支撑采用5mm不锈钢板，具体见详图。"]
["301车间总价",{"$nulls":3},{"$f":"#REF!+#REF!+#REF!+#REF!+#REF!+#REF!+#REF!","v":{"$error":"#REF!"}}]
["生产二部201车间祚延园夏季检修工程量清单"]
[1,"万吨四楼修复腐蚀地面(原香精香料房)","地面腐蚀，需修复。","1、人工破除原有10cm厚腐蚀地面，重新浇筑10cm后C25混凝土地面，布置双层双向φ10HPB400@250钢筋网。地面尺寸为：7.3×6m，采用原浆收光。万吨酒库属于一级动火区域作业，施工时应做好安全技术措施后方可进行施工。"]
[2,"扩建酒库一大门轨道变形","维修大门轨道","1、临时固定原有大门，破除原有长6m、宽0.2m，10cm厚混凝土地面，拆除原有轨道，更换新的轨道门，轨道长度为6m，浇筑混凝地面。"]
[3,"优质酒库屋顶漏水","屋面漏雨维修","1、优质酒库共有9处漏雨，铲除原有防水卷材，每处铺贴12平方瑞龙SBS防水卷材带铝箔反光膜（3mm厚），共计108平方。    2、原有坡道处墙面有2个洞口，需进行封堵，作业高度为4m。  3、酒库配电柜房有5个穿线洞口需封堵。"]
["201车间总价",{"$nulls":3},{"$f":"#REF!+#REF!+#REF!","v":{"$error":"#REF!"}}]
["112-酿三车间夏季检修工程量清单"]
[1,"车间4甑、甑底、甑边抹平修复","车间1-4号甑：甑底、甑内边及甑外周围水泥抹平工作（面积约25㎡）","4处甑罐，直径2.5米，将甑底、甑内部、甑外围的混凝土结构进行水泥砂浆（1：2）修补及抹平扫光"]
[2,"下水道清理120米","无异物积沉，流水畅通无阻","掀开并用水泥砂浆盖回原混凝土盖板，清理排水沟余糟、泥沙、垃圾等杂物，排水沟宽约60cm、深0.6-1.0m，约120米"]
[3,"清理房顶落水管","屋面落水口及排水管疏通","清理屋面排水沟、排水管垃圾，保证屋面干净、排水顺畅，预计花费2个小工。"]
[4,"更换沟盖板50块","内沟盖板破损，实心板30块，漏水板20块。","1、更换30块C25钢筋混凝土盖板，横纵向布置Ø10@150钢筋，规格800*500*50。\n2、更换20块钢筋混凝土格栅盖板，横纵向布置Ø10@150钢筋，规格400*600*50。\n必须采用复合水泥或粉煤灰水泥品种制作。"]
[5,"更换车间缺损的玻璃","更换玻璃","更换上旋固定窗破损普通玻璃800mm*1200mm共2块，其中1块需更换窗框，作业高度约4m。"]
[6,"鼓风机、过气管支架油漆","防锈涂漆","16套鼓风机表面除锈并刷防锈漆、面漆各一道.车间所有过气管支架除锈并刷防锈漆、面漆各一道（防锈漆采用丹红防锈漆，山东乐化牌，颜色由使用单位自定）。"]
[7,"车间作业现场花岗岩地面整平修复（40㎡）","车间40㎡花岗岩地面整平修复","掀起300*600花岗岩约40平方米，水泥砂浆调平花岗岩，更换花岗岩20平方米。"]
[8,"车间外路台修复","破损室外平台修复","1、南北侧室外平台地面凿毛，清理松散水泥砂浆，重新浇筑平均厚度约6cm厚C25混凝土，面积：3.2m*2.2m+7m*2m。\n2、南北侧室外平台侧面铲除表面松散水泥砂浆，浇水湿润、重新粉刷1:2.5水泥砂浆18厚，面积约10㎡（废弃洞口需补平）"]
["酿三车间总价",{"$nulls":3},{"$f":"#REF!+#REF!+#REF!+#REF!+#REF!+#REF!+#REF!+#REF!","v":{"$error":"#REF!"}}]
["112-酿四车间夏季检修工程量清单"]
[1,"工具房门口过道整平","地面下沉修复（面积52㎡）","过道地面刷素水泥浆1道，重新浇筑约5cm厚C25混凝土，原浆收光，面积40m*1.3m。"]
[2,"废糟池修整","废糟池内壁水泥砂浆抹平（面积26.1㎡）","敲出表面松动混凝土块，重新分层抹灰18厚1:2.5水泥砂浆面积（6.2m*2+5m）*1.5m"]
[3,"车间内排水沟清理","清理排水沟40米","掀开并用水泥砂浆盖回原混凝土盖板，清理排水沟余糟、泥沙、垃圾等杂物，排水沟宽约60cm、深0.6-1.0m，约40米长。"]
[4,"车间4甑、甑底、甑边抹平修复","甑底、甑内边及甑外周围水泥抹平工作（面积约25㎡）修补面积约20㎡。","4处甑罐，直径2.5米，将甑底、甑内部、甑外围的混凝土结构进行水泥砂浆（1：2.5）修补及抹平扫光。"]
[5,"沟盖板更换","内沟盖板破损，实心板30块，漏水板15块。","1、更换30块C25钢筋混凝土盖板，横纵向布置Ø10@150钢筋，规格800*500*50。\n2、更换15块钢筋混凝土格栅盖板，横纵向布置Ø10@150钢筋，规格600*400*50。\n必须采用复合水泥或粉煤灰水泥品种制作。"]
[6,"车间操作现场花岗岩整平修复（40平米米）","车间60平米花岗岩地面整平修复","掀起300*600花岗岩约40平方，水泥砂浆调平花岗岩，其中更换花岗岩面积约20平方米。"]
[7,"窖池过道维修及清理","过道地面降低，设置溢流口","1、宽0.8m、长46m，破除原有砼地面约10cm厚，挖土15cm深；\n2、浇筑10cm厚C25混凝土地面，原浆收光。\n3、设置2处20cm深溢流口0.4m*0.7m，钢筋砼墙体200水钻开孔"]
[8,"原大曲仓库门口地面整平","门槛及室外斜坡地面修复（面积8.1㎡）","地面凿毛，铲除表面松散混凝土，重新浇筑10cm厚C25混凝土，面积：3.6m*0.5m+4.2m*1.5m"]
[9,"北侧靠配电柜处地面修补","地面修补（面积7㎡）","刷素水泥浆一道，采用1:2.5水泥砂浆找坡地面，方便排水，面积约4m*1.75m。"]
["酿四车间总价",{"$nulls":3},{"$f":"#REF!+#REF!+#REF!+#REF!+#REF!+#REF!+#REF!+#REF!+#REF!","v":{"$error":"#REF!"}}]
["112-酿五车间夏季检修工程量清单"]
[1,"车间内排水沟清理（200米）","无异物积沉，流水畅通无阻","掀开并盖回原混凝土盖板，清理排水沟余糟、泥沙、垃圾等杂物，排水沟宽约60cm、深0.6-1.0m，约200米"]
[2,"车间内沟板更换（花板30块，实板40块）","内沟盖板破损，实心板40块，漏水板30块。","1、更换40块C25钢筋混凝土盖板，横纵向布置Ø10@150钢筋，规格500*800*50\n2、更换30块C25钢筋混凝土格栅盖板，横纵向布置Ø10@150钢筋，规格400*600*50\n必须采用复合水泥或粉煤灰水泥品种制作"]
[3,"车间操作场地地面整平","修补整平花岗岩地面40平方","掀起300*600花岗岩约40平方，水泥砂浆调平花岗岩，其中更换花岗岩面积约20平方米。"]
[4,"清理房顶落水管","屋面落水口及排水管疏通","清理屋面排水沟、排水管垃圾，保证屋面干净、排水顺畅，预计花费2个小工。"]
[5,"车间4甑、甑边抹平修复","车间1-4号甑：甑外周围水泥抹平工作，面积约为6.5平方。","4处甑罐，直径2.5米，将甑外围的混凝土结构进行水泥砂浆（1：2.5）修补及抹平扫光。"]
[6,"车间室外地面硬化","地面硬化，便于堆放窖砂（硬化面积58.4㎡）","1、挖除表面松散杂土30cm厚，素土夯实\n2、5cm厚中砂垫层，15cm厚C25混凝土原浆收光，硬化面积12m*1.2m。"]
[7,"北侧室外路台加高接平门槛","路台加高保持跟车间地面平行（面积22㎡）","北侧室外平台地面凿毛，清理松散水泥砂浆，重新浇筑12cm厚C25混凝土，面积：11m*2m。\n"]
[8,"车间卫生间下水管道疏通","下水管道疏通","卫生间下水道疏通，预计花费1个小工。"]
["酿五车间总价",{"$nulls":3},{"$f":"#REF!+#REF!+#REF!+#REF!+#REF!+#REF!+#REF!+#REF!","v":{"$error":"#REF!"}}]
["112-酿六车间夏季检修工程量清单"]
[1,"清理房顶落水管","屋面落水口及排水管疏通","清理屋面排水沟、排水管垃圾，保证屋面干净、排水顺畅，预计花费2个小工。"]
[2,"车间4甑、甑边抹平修复","车间1-4号甑：甑外周围水泥抹平工作，面积约为6.5平方米。","4处甑罐，直径2.5米，将甑外围的混凝土结构进行水泥砂浆（1：2.5）修补及抹平扫光。"]
[3,"丢糟池墙面修复","反沿修补","原破损反沿凿除，重新浇筑10m长*0.12m宽*0.1m高混凝土反沿，内设1根φ10通长钢筋。"]
[4,"车间过道破损地面修复","过道地面修复（面积5.55㎡）","凿除原有10cm厚破损混凝土地面，重新浇筑10cm厚C25混凝土地面，面积1.85m*1m*3个。"]
[5,"整平车间作业现场","修补整平花岗岩地面50平方米","掀起300*600花岗岩约50平方，水泥砂浆调平花岗岩，其中更换花岗岩面积约20平方米。"]
[6,"车间内排水沟清理","无异物积沉，流水畅通无阻","掀开并盖回原混凝土盖板，清理排水沟余糟、泥沙、垃圾等杂物，排水沟宽约60cm、深0.6-1.0m，约200米"]
[7,"沟盖板更换","内沟盖板破损，花板30块，实板30块","1、更换30块C25钢筋混凝土盖板，横纵向布置Ø10@150钢筋，规格500*800*50\n2、更换30块C25钢筋混凝土格栅盖板，横纵向布置Ø10@150钢筋，规格400*600*50\n必须采用复合水泥或粉煤灰水泥品种制作"]
[8,"车间卫生间下水管道疏通","下水道疏通","1、室内破除地瓷砖面1米长，0.4m宽，拆除砖砌踏步约0.3m³   \n2、人工挖沟槽3m长×1.5m深×1.2m宽，更换4m长DN110PVC管、直接2个、存水弯一个、配件若干。                                  3、回填土、室内瓷砖地面、砖砌踏步（踏面粉刷）恢复。"]
[9,"甑立柱地面维修","4处直径0.6米甑地面维修","直径0.6米*4处，立柱地面凿除原表层松动混凝土，待动力车间焊接修复后，5cm厚1：2砂浆抹面压光恢复地面"]
["酿六车间总价",{"$nulls":3},{"$f":"#REF!+#REF!+#REF!+#REF!+#REF!+#REF!+#REF!+#REF!+#REF!","v":{"$error":"#REF!"}}]
["112-酿七车间夏季检修工程量清单"]
[1,"整平车间作业现场","修补整平花岗岩地面40平方","掀起300*600花岗岩约40平方，水泥砂浆调平花岗岩，其中更换花岗岩面积约20平方米。"]
[2,"车间沟盖板更换","内沟盖板破损，实心板30块，漏水板30块。","1、更换30块C25钢筋混凝土盖板，横纵向布置Ø10@150钢筋，规格400*800*50\n2、更换30块C25钢筋混凝土格栅盖板，横纵向布置Ø10@150钢筋，规格400*600*50\n必须采用复合水泥或粉煤灰水泥品种制作"]
[3,"车间排水沟清理","无异物积沉，流水畅通无阻","掀开并盖回原混凝土盖板，清理排水沟余糟、泥沙、垃圾等杂物，排水沟宽约60cm、深0.6-1.0m，约200米"]
[4,"修理房屋漏水","伸缩缝漏水4处","总长约20m伸缩缝漏水修补，修补完后要求不漏水           1、拆开原有伸缩缝防水卷材。                                  2、使用麻丝沥青，处理伸缩缝，伸缩缝表面做25cm宽不锈钢。                                                   3、不锈钢表面做一道3mm厚，宽1m的瑞龙SBS防水卷材带铝箔反光膜             "]
[5,"室外路台加高接平门槛、地面修复","路台加高保持跟车间地面平行","1、北侧室外平台地面凿毛，清理松散水泥砂浆，重新浇筑12cm厚C25混凝土，面积：11m*2m。\n2、南侧室外平台凿除松散水泥砂浆块，重新粉刷12厚1:2.5水泥砂浆18m*0.15m"]
[6,"车间周边地面硬化","地面硬化，便于堆放窖砂（硬化面积58.4㎡）","1、挖除表面松散杂土30cm厚，素土夯实\n2、5cm厚中砂垫层，15cm厚C25混凝土原浆收光，硬化面积12m*1.2m。"]
[7,"洗澡堂地面整平","室内地面修复（面积17.76㎡）","破除原空鼓地砖，基层清理干净，刷素水泥浆1道，12厚1:2.5水泥砂浆抹面，面积3.7m*4.8m"]
[8,"工具房、值班室仿瓷","墙面刮腻子（面积40.8㎡）","\n值班室及5个工具房打磨墙面，刮腻子两遍（腻子需要添加107建筑胶），工程量为[（2.7m+1.8m）*2*2.5m高-1.7㎡]*5+20㎡"]
[9,"甑立柱地面维修","4处直径0.6米甑地面维修","直径0.6米*4处，立柱地面凿除原表层松动混凝土，待动力车间焊接修复后，5cm厚1：2砂浆抹面压光恢复地面"]
["酿七车间总价",{"$nulls":3},{"$f":"#REF!+#REF!+#REF!+#REF!+#REF!+#REF!+#REF!+#REF!+#REF!","v":{"$error":"#REF!"}}]
["123-酿八车间夏季检修工程量清单"]
[1,"车间下水道清理","所有水沟，取盖板，清理，冲洗，下水沟清120米左右","掀开原混凝土盖板，清理排水沟内余糟、泥沙、垃圾等杂物，排水沟宽约600㎜、深0.6~1.2米左右；120米长"]
[2,"花岗岩、沟盖板增补，地漏沟盖板增补","1.花岗岩盖板增补30块\n2.地漏盖板增补30块","1、300×600*50花岗岩沟盖板30块；\n2、400×600*50厚钢筋混凝土格栅盖板30块，横纵向布置Ø10@150钢筋。"]
[3,"二空二号起甑器立柱修理","需开挖重新浇筑加固底座","\n1、破除并挖除起甑器基础1000*1200*800深。\n2、浇筑1000*1200*800深混凝土基础，放置600*600*18厚钢板，L型Ø14圆钢锚固件（300*150）4个。\n3、切割起甑器底部钢板，吊装、焊接起甑器（满焊）。\n4、花岗岩修复地面。\n"]
[4,"男女厕所滴漏","更换水龙头、角阀","更换水龙头2个、延时角阀1个及配件若干。"]
["酿八车间总价",{"$nulls":3},{"$f":"#REF!+#REF!+#REF!+#REF!","v":{"$error":"#REF!"}}]
["126-酿九车间夏季检修工程量清单"]
[1,"车间内部排水沟清理","1.所有水沟，取盖板，清理，冲洗，下水沟清200米左右","掀开并盖回原混凝土盖板，清理排水沟内余糟、泥沙、垃圾等杂物，排水沟宽约60cm、深0.6~1米左右，200米长"]
[2,"车间洗澡间吊顶修复","吊顶修复","1、切除原有锈蚀严重轻钢龙骨，重新安装D45轻钢龙骨5米及配件若干；\n2、更换600*600铝扣板6块。"]
[3,"男卫生间隔档门","隔断门修复、蹲便器地砖修复","1、更换304不锈钢合页6个，重新安装原厕门2扇及配件若干。\n2、破除男蹲便器下沉地砖，清除松散砂浆，重新铺贴300*600地砖2.4m*0.9m。"]
[4,"上窖池坡梯维修","斜坡楼梯侧面修复","铲除楼梯侧面松散水泥砂浆，浇水湿润、重新粉刷1:3水泥砂浆18厚，面积约9㎡。"]
[5,"凉滩机周边花岗岩地面修复","花岗岩地面修复","掀起300*600*30破损、下沉花岗岩20块，水泥砂浆调平花岗岩，其中需更换花岗岩10块。"]
[6,"4#空现场接酒罐","破开地面后，调整罐体与基酒输酒管的高度，罐体底部略高于基酒输酒管，确保基酒能正常排空","破除直径35cm接酒罐周边花岗岩地面，抬高接酒罐底座约3cm，罐体外壁及底面粉刷水泥砂浆，重新恢复花岗岩地面。"]
[7,"水沟盖板，花盖板补充","1.花岗岩盖板20块\n2.水泥格栅板20块","1、300×600*50花岗岩沟盖板30块；\n2、400×600*50厚钢筋混凝土格栅盖板30块，横纵向布置Ø10@150钢筋。"]
[8,"酿造设备配电柜加高","将车间1至4空酿造配电柜整体抬升20公分，底部采用混凝土平台，地面线盒改走地下管道。\n","配电柜底部浇筑0.4m*0.8m素混凝土基础，共计4个"]
["酿九车间总价",{"$nulls":3},{"$f":"#REF!+#REF!+#REF!+#REF!+#REF!+#REF!+#REF!+#REF!","v":{"$error":"#REF!"}}]
["127-酿十车间夏季检修工程量清单"]
[1,"东侧行车过道台阶处破损修复","1号、3号上窖池楼梯修复","铲除楼梯侧面松散水泥砂浆，浇水湿润、重新粉刷1:3水泥砂浆18厚，面积约12㎡。"]
[2,"2号收酒房墙根旁地面修整、抬升","车间3、4线操作区域靠收酒房地面整修抬升（约10㎡）","掀起300*600*30花岗岩地面约10㎡，1:2.5水泥砂浆调平花岗岩，其中需更换花岗岩面积约5平方。"]
[3,"水沟盖板，花盖板补充","更换花岗岩盖板60cm*30cm厚5cm的共20块、600*400*50钢筋砼格栅板20块","1、更换300*600*50厚花岗岩沟盖板20块。\n2、制安400×600*50厚钢筋砼格栅盖板20块，内含横纵向布置Ø10@150钢筋。\n"]
[4,"室外靠培曲房台阶修复","台阶修复","铲除台阶表面破损水泥砂浆，浇水湿润、重新粉刷18厚1:2.5水泥砂浆面积约5㎡。"]
[5,"车间排污沟清理","车间内所有排污沟约230米需进行清淤","掀开并盖回原混凝土盖板，清理排水沟内余糟、泥沙、垃圾等杂物，排水沟宽约60cm、深0.6~1米左右，230米长"]
[6,"2号线屋顶落水管破裂","DN300落水管补漏","DN300直角弯头处采用沥青麻丝堵漏，共计2处。"]
[7,"车间1号预蒸房漏雨水","伸缩缝防漏","屋面伸缩缝原有铁皮盖板采用专用水泥钉@600固定安装，硅酮密封胶密封，保证完成后盖板稳固且不漏水，长度约20米。"]
[8,"卫生间破损隔挡门修复","维修、更换卫生间隔挡门","更换4扇0.3m*1.9m厕门框、3扇0.6*1.9m卫生间隔断门、304不锈钢合页9个，其他配件若干。"]
[9,"凉摊底部水泥破损修补","3号、4号凉摊底部水泥破损修补","凉摊机底部需做5cm厚水泥砂浆抹平层（中间高、两侧低），尺寸为10.3m×1.5m*2个。"]
["酿十车间总价",{"$nulls":3},{"$f":"#REF!+#REF!+#REF!+#REF!+#REF!+#REF!+#REF!+#REF!+#REF!","v":{"$error":"#REF!"}}]
["128-酿十一车间夏季检修工程量清单"]
[1,"操作场地内沟清理和维修","车间内所有排污沟约200米需进行清淤","掀开并盖回原混凝土盖板，清理排水沟内余糟、泥沙、垃圾等杂物，排水沟宽约60cm、深0.6~1米左右，200米长"]
[2,"上窖池坡梯维修","对斜坡楼梯侧面修复（20㎡）","铲除表面松散水泥砂浆面层，浇水湿润、重新粉刷1:2.5水泥砂浆18厚，面积约20㎡。"]
[3,"修补操作场地","对操作场地内地面进行修复\n（约30㎡）","掀起300*600花岗岩约30平方米，水泥砂浆调平花岗岩，其中需更换300*600*50花岗岩约10平方米。"]
[4,"车间外围1处排水管道疏通","疏通室外排水管道13米","13m长DN110室外埋地PVC排水管人工疏通，下水口处制安漏斗1个。"]
[5,"男浴室下水道清理","疏通排水管","室内下水管道疏通，预计花费1个小工。"]
[6,"4线凉糟机右侧地面抬高10公分；1、2、3线凉摊机配电柜旁做防水坡。","4线凉糟机右侧、落糟池上侧地面抬高；1、2、3线凉摊机配电柜浇筑基础。","1、4线机糟机右侧及落糟池上侧翘起300*600*30花岗岩地面（5m+3m）*0.6m，采用1:2.5水泥砂浆调高花岗岩地面，方便排水。\n2、配电柜底部浇筑0.4m*0.8m素混凝土基础，共计3个"]
[7,"4台凉糟机下方做地面","4台凉糟机下方地面修补","1、凉摊机底部需做5cm厚水泥砂浆抹平层（中间高、两侧低），尺寸为10.3m×1.5m*4个。"]
[8,"男洗澡堂地面砖","更换600*600地砖2块","翘起原松动地砖，重新铺贴600*600地砖2块。"]
[9,"洗澡堂二楼通往一楼室内下水口漏水","下水口补漏","DN110下水口凿除周边10cm宽混凝土，基层清理干净，采用堵漏王砂浆填充密实。"]
[10,"水沟盖板，花盖板补充","1.花岗岩盖板20块\n2.水泥格栅板20块","1、300×600*50花岗岩沟盖板30块；\n2、400×600*50厚钢筋混凝土格栅盖板30块，横纵向布置Ø10@150钢筋。"]
["酿十一车间总价",{"$nulls":3},{"$f":"#REF!+#REF!+#REF!+#REF!+#REF!+#REF!+#REF!+#REF!+#REF!+#REF!","v":{"$error":"#REF!"}}]
["125-大曲三车间夏季维修工程量清单"]
[1,"东站发曲仓库门拓宽","拓宽80公分或重新开新门","人工破除0.8m*2.2m高240墙体，门洞上部植入3根直径16钢筋浇筑2.3m*0.28m*0.1m厚C25砼过梁。"]
[2,"卫生间维修","更换300*300地砖","破除女蹲便器下沉地砖，清除松散砂浆，重新铺贴300*300地砖2.4m*1.3m。"]
["大曲三车间总价",{"$nulls":3},{"$f":"#REF!+#REF!","v":{"$error":"#REF!"}}]
["动力二车间夏季维修工程量清单"]
[1,"一级冷却塔循环水池溢水明沟二侧地面平整硬化。","地面加高（面积27.3㎡）","地面清理干净，刷素水泥浆一道，浇筑10cm厚C25混凝土，原浆收光，面积7.8m*3.5m"]
[2,"冷却塔金属支架除锈、防腐，加固","对锈蚀金属支架进行除锈、防腐处理，腐蚀脚断裂的需要用水泥加固。","冷却塔支架除锈，刷防锈漆两道。工程量为：22型工字钢6.7m长/根*4根，12#槽钢4.4m长/根*4根、2.5m长/根*3根，其余材料若干；"]
[3,"一级、二级循环水池清洗","夏季停产时先将池中水抽干，再清池底於泥和四周池壁泥垢。","1、抽干循环水池清水14m*6.5m*2.5m+9m*5m*3.5m。\n2、清理池底和四周池壁泥垢，工程量为（14m+6.5m）*2*2.5m+14m*6.5m+(9m+5m)*2*3.5m+9*5m。"]
[4,"112- 3、4、5、6、7室外循环水池底於泥和池壁结垢进行人工清洗。","清池底於泥和四周池壁泥垢","清理池底和四周池壁泥垢，水池4.9m长*1.9m宽*1.5m高"]
["动力二车间总价",{"$nulls":3},{"$f":"#REF!+#REF!+#REF!+#REF!","v":{"$error":"#REF!"}}]
["动力三车间夏季维修工程量清单"]
[1,"八千吨值班室改造","值班室地面贴地砖","1、值班室5.6m*4.4m地面采用600*600*10厚地砖铺贴，四周贴地脚线。\n"]
["动力三车间总价",{"$nulls":3},{"$f":"#REF!","v":{"$error":"#REF!"}}]
["仓储管理部承延园夏季检修工程量清单"]
[1,"仓储材料仓库（承延科技园）：F-L-8（谷壳）仓更换1扇卷帘门","拆除原卷帘门并制作、安装铁制门1扇，尺寸为3m*3.0M。","1、拆除原有防火卷帘门                                2、制安铁制门，门尺寸，3mm*3m（配件若干）。具体做法详见图纸"]
[2,"仓储材料仓库（承延科技园）：①F-L-4（麦麸）仓搭建一个雨棚；                         ②F-L-4（麦麸）仓与F-L-3（面粉）仓连通处开一扇门","①F-L-4仓搭建一钢结构雨棚，规格：18M*4.5M（具体以实际为准）。              \n②F-L-4仓与F-L-3仓连通处开门，规格：2.4M*3.9M。","①F-L-4（麦麸）仓搭新建18m长*6m宽、5m长*3m宽钢结构雨棚，路面硬化面积31m*2m。做法详见图纸附件。\n②采用机械切槽、人工破除墙体2.4m*3.9m，门洞两侧各设置1个截面尺寸：0.24m*0.15m*3.9m高 C25混凝土构造柱（内含4根直径12钢筋，上下植入墙体）。"]
[3,"东站酿四-酿五车间门口污水挡坡降低坡度","加长两个挡坡斜坡，降低坡度。","地面凿毛，清除松散混凝土块，重新浇筑4.5m长*1m宽*4个 C25砼斜坡，混凝土平均厚度约15cm（斜坡需压痕）"]
[4,"东站大米仓库墙面粉刷、顶部漏点修补","①对漏雨点进行修补。\n②墙体重新粉刷。（面积约10平米，具体以实际为准）","①屋面檐沟漏点采用3mm厚SBS防水卷材热熔修补，面积约4㎡。\n②铲除松散粉刷层，满铺钢丝网，重新粉刷18厚1:2.5水泥砂浆，面积约10㎡。"]
["仓储管理部承延园总价",{"$nulls":3},{"$f":"#REF!+#REF!+#REF!+#REF!","v":{"$error":"#REF!"}}]
["环保水务处承延园夏季检修工程量清单"]
[1,"两城污水管网开挖重新敷设，部分雨水管网疏通","将培曲房与大曲中间道路的污水主管道更换，更换后部分封堵雨水管疏通","培曲房下方9个污水井内部重新用砂浆粉刷，旁边10个雨水井内部重新用水泥砂浆粉刷。"]
[2,"两城给水消防管网更换阀门","原有阀门无法关闭，需要更换新的阀门","承延园室外更换给水闸阀5个、消防闸阀5个，酿9、酿10车间共计更换消防蝶阀4个，详见附图。"]
[3,"污水站化验室旁地面积水","原有水泥地面低洼，下雨易存雨水","挖土30cm深，单砖砌筑净宽20cm、深20cm排水明沟，沟内壁粉刷1:2.5水泥砂浆，沟底浇筑10cm厚C15砼垫层，长度约24m。"]
[4,"两城污水站板框压滤机附近水泥地面需拓宽","压滤机压泥较多，周边草坪容易粘泥且不易清扫，需拓宽水泥地面","挖土30cm深，素土夯实，垫层采用10cm厚中砂，地面硬化采用15cm厚C25卵石砼，原浆收光，硬化面积：5m*2m。"]
[5,"两城4个酿造车间内回流水管更换","酿造车间内回流水管已经锈蚀，无法修补","更换每个一个车间2m长的DN200循环水回流水管道，材质为镀锌钢管。车间原有石板地面开挖，开挖长2m,宽0.6m，深0.8m，原管道开挖后清除，敷设新管道，管道焊接连接，敷设时需做三油两布防腐处理。"]
["环保水务处承延园总价",{"$nulls":3},{"$f":"#REF!+#REF!+#REF!+#REF!+#REF!","v":{"$error":"#REF!"}}]
["承延园包八车间夏季检修工程量清单"]
[1,"洗瓶区室外消防通道破损地面修复","地面修复","1、翘起原松动800*800地面砖，基层凿毛清理。\n2、刷素水泥浆1道，12厚水泥砂浆抹压收光，面积48m*2.8m（每8米切缝1道）。"]
[2,"包装车间防火木门更换","更换钢制防火门1扇","拆除原防火木门，制安成品钢制甲级防火门1扇，尺寸：1.5m*2.1m（要求无门槛）。"]
[3,"包装车间钢结构屋面漏水","屋面补漏","现场检查发现共计有8处漏点:\n1、屋面板接缝处采用2mm瑞龙牌自粘防水卷材铺贴，每处漏点铺贴0.2m*12m*4块；\n\n2、屋面板松动处采用自攻螺丝加固，涂抹黑色硅酮胶。\n\n"]
[4,"包装车间室内外楼梯踏步修补","楼梯踏步修补","1、拆除室内原破损花岗岩踏步砖，重新铺贴1.2m*0.32m*0.02m厚花岗岩面砖4块、0.92m*0.32m*0.02m厚花岗岩面砖2块\n2、室外破损水泥台阶铲除松动水泥块，采用1:2.5水泥砂浆抹面，面积约1㎡。"]
["包八车间总价",{"$nulls":3},{"$f":"#REF!+#REF!+#REF!+#REF!","v":{"$error":"#REF!"}}]
["承延园锅炉房夏季检修工程量清单"]
[1,"脱硫抓斗设备设施：","1、将2个立柱用水泥浇筑起来保护立柱不受腐蚀（H=60cm）；\n2、将堆积场地延长1.5m,挡墙钻3-4个Φ90孔；\n3、修复破坏路面","1、设备立柱采用C25砼浇筑，尺寸为：0.4m*0.4m*0.6m高。\n2、堆积场新增砖砌筑1.5m长*0.55m高*0.24m宽围堰，挡墙水钻φ90孔4个。\n3、堆积场破损砼地面破除厚度约15cm，重新浇筑C25砼地面，面积约8㎡。"]
[2,"部分吸水砖地面修复","下沉部分修复","翘起下沉破损吸水砖，地面基层清理，重新铺贴200*100*50吸水砖地面，面积约15㎡。"]
[3,"布袋除尘下灰处进行相关改进","1、将下灰围挡遮盖密封，拖车进出口做双开门；2、路面积水处切槽或开沟引至排水沟。","1、下灰处采用0.476厚彩钢瓦遮盖共2块，尺寸为：2.2m*1.7m、2.45m*1.7m（该处采用彩钢制安1.2m*2m双开门）\n2、路边增加0.4m*0.6m*0.6m深雨水井1个，采用1.8m长DN160波纹管与原有雨水井连接。"]
[4,"输煤皮带进入锅炉房接口处加装挡雨棚","安装一挡雨棚","锅炉房运煤栈桥洞口处制安3m*1.2m钢制雨棚，详见图纸。"]
[5,"拖灰途径一处有积水","硬化途径段路面","破除原破损混凝土地面10cm厚，地面清理干净，浇筑20cm厚C25混凝土地面，面积约3m*3m。",{"$nulls":3},"总价","放15%是这个数"]
["承延园锅炉房总价",{"$nulls":3},{"$f":"#REF!+#REF!+#REF!+#REF!+#REF!","v":{"$error":"#REF!"}},null,null,{"$f":"E186+E179+E173+E166+E160+E157+E151+E147+E135+E124+E114+E108+E97+E86+E76+E65+E55+E50+E41+#REF!+#REF!+#REF!","v":{"$error":"#REF!"}},{"$f":"H186*1.15","v":{"$error":"#REF!"}}]
["注：1、施工单位必须遵守我司规章制度，并请施工单位务必做好厂区构筑物、设施设备、机具等的保护工作，污染、损坏的必须修复。\n2、设备管道油漆均采用山东乐化牌，镀锌管均采用华岐牌，水泥均采用红狮牌水泥PC32.5(或以上标号)，塑料管道采用联塑牌，混凝土采用商混，乳胶漆采用立邦或多乐士低档乳胶漆，防霉涂料采用卡利得9512，电缆电线采用赣昌，特别注明处按照说明执行。\n3、以上施工现场所产生的建筑垃圾、渣土、砖渣及淤泥、弃糟等由施工单位清运出厂区（我方需要的，运至厂区指定位置）。\n4、以上工作施工前均需提前通知相关维修提报单位，与之沟通好相关维修安排，避免与车间其他工作产生冲突、二次污染等。\n5、未尽事宜按照国家相关规范进行施工及验收。"]